bitfinex-derivatives/quotes_SOLF0:USTF0_20250211
["timestamp","ask_amount","ask_price","bid_price","bid_amount"]
[1739258412902,1.59718727,205.61,205.57,4.8635]
[1739258413805,1.59718727,205.61,205.56,5.73044655]
[1739258414406,1.59718727,205.61,205.59,4.8632]
[1739258416307,1.59718727,205.61,205.6,4.863]
[1739258417699,0.03248727,205.61,205.6,4.863]
[1739258417905,0.03248727,205.61,205.6,10.59344655]
[1739258420411,0.03248727,205.61,205.6,5.73044655]
[1739258421107,0.03248727,205.61,205.58,10.59394655]
[1739258421308,0.03248727,205.61,205.6,5.73044655]
[1739258421711,0.03248727,205.61,205.6,10.59344655]
[1739258422311,0.03248727,205.61,205.6,5.73044655]
[1739258422716,0.03248727,205.61,205.58,5.73044655]
[1739258423306,0.03248727,205.61,205.55,0.03242507]
[1739258423511,0.03248727,205.61,205.56,5.73044655]
[1739258424211,0.03248727,205.61,205.58,5.73044655]
[1739258424714,0.03248727,205.61,205.6,5.73044655]
[1739258425315,0.03248727,205.61,205.6,10.59344655]
[1739258427618,0.03248727,205.61,205.6,13.7995016]
[1739258428116,0.03248727,205.61,205.6,4.863]
[1739258428315,0.03248727,205.61,205.59,4.8632]
[1739258429015,0.03248727,205.61,205.58,4.8635]
[1739258429210,0.03248727,205.61,205.57,8.9365016]
[1739258430717,0.03248727,205.61,205.58,4.8633]
[1739258431015,0.03248727,205.61,205.55,0.03242507]
[1739258431215,0.03248727,205.61,205.56,2.75630077]
[1739258431415,0.03248727,205.61,205.55,0.03242507]
[1739258431617,0.03248727,205.61,205.56,2.7565616]
[1739258431816,4.89528727,205.61,205.56,4.864]
[1739258432618,4.89528727,205.61,205.55,0.03242507]
[1739258432818,4.89528727,205.61,205.57,4.8637]
[1739258433023,4.863,205.6,205.55,0.03242507]
[1739258433222,0.03248727,205.61,205.57,4.8637]
[1739258433422,0.03248727,205.61,205.55,0.03242507]
[1739258434623,0.03248727,205.61,205.6,4.863]
[1739258439030,0.03248727,205.61,205.59,4.8632]
[1739258439332,0.03248727,205.61,205.57,8.9365016]
[1739258440332,0.03248727,205.61,205.58,4.8635]
[1739258440728,0.03248727,205.61,205.55,0.03242507]
[1739258440930,0.03248727,205.61,205.57,4.8635]
[1739258441132,0.03248727,205.61,205.55,0.03242507]
[1739258442533,0.03248727,205.61,205.58,4.8633]
[1739258443935,0.03248727,205.61,205.59,4.8633]
[1739258444137,0.03248727,205.61,205.55,0.03242507]
[1739258444729,0.03248727,205.61,205.6,4.863]
[1739258447635,0.03248727,205.61,205.6,10.58311954]
[1739258456337,1.4767,205.7,205.6,5.72011954]
[1739258456539,4.8609,205.69,205.65,10.58181954]
[1739258456734,7.19681954,205.7,205.65,10.58181954]
[1739258457140,12.05771954,205.7,205.65,10.58181954]
[1739258457342,7.19681954,205.7,205.65,10.58181954]
[1739258457547,7.23355076,205.7,205.65,5.75172877]
[1739258457743,7.23355076,205.7,205.66,4.8614]
[1739258457941,1.51343122,205.7,205.67,5.72011954]
[1739258458546,1.51343122,205.7,205.67,10.58151954]
[1739258459250,1.51343122,205.7,205.68,4.8611]
[1739258460651,1.51343122,205.7,205.67,5.72011954]
[1739258460945,1.51343122,205.7,205.65,10.61332877]
[1739258461247,1.51343122,205.7,205.65,5.75172877]
[1739258461847,1.51343122,205.7,205.68,4.8611]
[1739258462553,0.03673122,205.7,205.69,10.58101954]
[1739258468262,0.03673122,205.7,205.69,5.72011954]
[1739258469059,0.03673122,205.7,205.69,10.58101954]
[1739258481464,3.122e-05,205.7,205.69,10.58101954]
[1739258481667,8.84551954,205.8,205.75,4.8593]
[1739258481867,8.84551954,205.8,205.75,10.57941954]
[1739258482371,4.8587,205.79,205.75,10.57941954]
[1739258482668,4.8587,205.79,205.76,4.8592]
[1739258482873,4.89535618,205.79,205.76,4.8592]
[1739258483270,0.03665618,205.79,205.76,4.8592]
[1739258484171,4.89515618,205.79,205.75,5.75118447]
[1739258484468,4.89515618,205.79,205.75,10.61058447]
[1739258485169,4.89515618,205.79,205.76,4.8592]
[1739258485369,0.03665618,205.79,205.75,5.75118447]
[1739258485571,4.8588,205.78,205.75,0.03106493]
[1739258486072,4.8589,205.78,205.75,0.03106493]
[1739258486674,4.859,205.77,205.75,0.03106493]
[1739258486874,0.03665618,205.79,205.75,0.03106493]
[1739258487175,4.8588,205.78,205.75,0.03106493]
[1739258487371,5.72011954,205.76,205.71,5.72011954]
[1739258487575,5.72011954,205.74,205.69,5.72011954]
[1739258487879,4.86,205.73,205.69,5.72011954]
[1739258488581,4.89577652,205.73,205.69,5.75242153]
[1739258488773,0.03577652,205.73,205.7,4.8607]
[1739258489074,0.03577652,205.73,205.69,5.75242153]
[1739258489075,0.03577652,205.73,205.71,5.72011954]
[1739258490178,0.03577652,205.73,205.72,4.8602]
[1739258490877,0.03577652,205.73,205.71,5.72011954]
[1739258491183,0.03577652,205.73,205.69,5.75242153]
[1739258491369,0.03577652,205.73,205.71,4.8603]
[1739258491876,0.03577652,205.73,205.72,4.8602]
[1739258492375,0.03577652,205.73,205.71,5.72011954]
[1739258492575,0.03577652,205.73,205.71,10.58051954]
[1739258493083,0.03577652,205.73,205.71,4.8604]
[1739258493577,0.03577652,205.73,205.7,4.8606]
[1739258493784,0.03577652,205.73,205.69,0.03230199]
[1739258494391,1.60317652,205.73,205.69,0.03230199]
[1739258495183,1.60317652,205.73,205.69,5.75242153]
[1739258495483,1.60317652,205.73,205.71,5.72011954]
[1739258496074,1.60317652,205.73,205.72,4.8602]
[1739258497390,1.60317652,205.73,205.71,10.58051954]
[1739258498188,1.60317652,205.73,205.72,4.8602]
[1739258500392,1.60317652,205.73,205.69,5.75242153]
[1739258500691,1.60317652,205.73,205.69,0.03230199]
[1739258501287,1.60317652,205.73,205.69,4.89320199]
[1739258501492,1.60317652,205.73,205.69,0.03230199]
[1739258501793,1.60317652,205.73,205.71,4.8604]
[1739258502290,1.60317652,205.73,205.69,0.03230199]
[1739258503892,1.60317652,205.73,205.7,4.8606]
[1739258505093,1.60317652,205.73,205.69,0.03230199]
[1739258505591,1.4497,205.72,205.67,5.72011954]
[1739258505891,1.4497,205.72,205.69,4.8608]
[1739258506485,1.4497,205.72,205.67,5.72011954]
[1739258506691,10.58081954,205.7,205.68,0.03482992]
[1739258506897,10.58081954,205.7,205.65,4.8616]
[1739258507197,5.72011954,205.7,205.64,4.8621]
[1739258507395,4.8609,205.69,205.64,4.8621]
[1739258507595,5.72011954,205.7,205.63,5.72011954]
[1739258508091,0.0348097,205.69,205.64,0.03312178]
[1739258508793,5.72011954,205.68,205.64,0.03312178]
[1739258508995,5.72011954,205.66,205.59,5.72011954]
[1739258509393,5.72011954,205.62,205.57,5.72011954]
[1739258509894,5.72011954,205.64,205.57,5.72011954]
[1739258510094,0.03498662,205.62,205.57,5.75740663]
[1739258510298,0.03498662,205.62,205.6,4.8629]
[1739258510693,0.03498662,205.62,205.57,5.75740663]
[1739258511302,0.03498662,205.62,205.6,4.8629]
[1739258511995,0.03498662,205.62,205.57,5.75740663]
[1739258512298,0.03498662,205.62,205.58,4.8633]
[1739258512498,0.03498662,205.62,205.57,5.75740663]
[1739258513799,0.03498662,205.62,205.59,4.8632]
[1739258514290,5.72011954,205.6,205.55,4.864]
[1739258514593,5.72011954,205.62,205.55,5.72011954]
[1739258514799,5.72011954,205.62,205.57,4.8637]
[1739258515600,10.61618543,205.62,205.57,4.89901436]
[1739258516099,10.61618543,205.62,205.58,4.8635]
[1739258517301,10.61618543,205.62,205.57,0.03531436]
[1739258517595,5.75348543,205.62,205.57,0.03531436]
[1739258517798,10.58331954,205.6,205.57,0.03531436]
[1739258518199,4.8633,205.59,205.57,0.03531436]
[1739258518597,5.75348543,205.62,205.57,0.03531436]
[1739258519000,10.61628543,205.62,205.57,0.03531436]
[1739258519205,5.75348543,205.62,205.57,0.03531436]
[1739258520804,4.863,205.61,205.57,0.03531436]
[1739258521004,5.72011954,205.58,205.51,5.72011954]
[1739258521207,5.72011954,205.56,205.49,5.72011954]
[1739258521507,5.72011954,205.56,205.53,4.8647]
[1739258522002,4.8623,205.64,205.55,5.72011954]
[1739258522204,4.8623,205.64,205.58,5.72011954]
[1739258522411,0.03502592,205.62,205.58,5.72011954]
[1739258522601,0.03502592,205.62,205.59,0.03187766]
[1739258522801,0.03502592,205.62,205.59,4.89507766]
[1739258523005,0.03502592,205.62,205.59,0.03187766]
[1739258523508,0.03502592,205.62,205.6,5.72011954]
[1739258524507,0.03502592,205.62,205.61,4.8628]
[1739258524706,0.03502592,205.62,205.6,5.72011954]
[1739258524907,0.03502592,205.62,205.59,0.03187766]
[1739258526116,0.03502592,205.62,205.6,5.72011954]
[1739258526405,0.03502592,205.62,205.6,10.58311954]
[1739258526611,0.03502592,205.62,205.59,0.03187766]
[1739258527813,0.03502592,205.62,205.59,4.89517766]
[1739258528315,0.03502592,205.62,205.59,0.03187766]
[1739258529213,4.89762592,205.62,205.59,0.03187766]
[1739258530415,0.03502592,205.62,205.59,0.03187766]
[1739258530614,4.8628,205.61,205.59,0.03187766]
[1739258532015,4.8628,205.61,205.52,5.72011954]
[1739258532016,5.72011954,205.61,205.52,5.72011954]
[1739258532215,10.58381954,205.58,205.53,4.8647]
[1739258532417,5.72011954,205.54,205.48,5.72011954]
[1739258533117,5.72011954,205.54,205.49,4.8654]
[1739258533319,0.03287642,205.53,205.49,4.90035815]
[1739258533514,0.03287642,205.53,205.49,0.03495815]
[1739258533721,0.03287642,205.53,205.49,4.90055815]
[1739258533911,0.03287642,205.53,205.49,0.03495815]
[1739258535019,0.03287642,205.53,205.49,4.90055815]
[1739258537418,0.03287642,205.53,205.49,0.03495815]
[1739258537618,0.03287642,205.53,205.5,4.8654]
[1739258538117,0.03287642,205.53,205.49,0.03495815]
[1739258538320,0.03287642,205.53,205.52,4.8649]
[1739258539021,0.03287642,205.53,205.5,10.58541954]
[1739258539521,0.03287642,205.53,205.5,4.8653]
[1739258539718,0.03287642,205.53,205.49,0.03495815]
[1739258539719,4.8654,205.5,205.49,0.03495815]
[1739258540022,0.03287642,205.53,205.49,5.75507769]
[1739258540219,0.03287642,205.53,205.51,5.72011954]
[1739258541523,0.03287642,205.53,205.5,4.8653]
[1739258542023,0.03287642,205.53,205.49,5.75507769]
[1739258542227,0.03287642,205.53,205.51,5.72011954]
[1739258543225,0.03287642,205.53,205.52,4.8649]
[1739258543424,0.03287642,205.53,205.49,5.75507769]
[1739258543924,0.03287642,205.53,205.51,4.8651]
[1739258545127,0.03287642,205.53,205.49,5.75507769]
[1739258545724,0.03287642,205.53,205.51,4.8652]
[1739258545924,0.03287642,205.53,205.49,5.75507769]
[1739258546323,0.03287642,205.53,205.5,4.8652]
[1739258546827,0.03287642,205.53,205.49,5.75507769]
[1739258547027,0.03287642,205.53,205.51,4.8651]
[1739258547320,0.03287642,205.53,205.49,5.75507769]
[1739258547521,0.03287642,205.53,205.51,4.865]
[1739258547725,0.03287642,205.53,205.49,5.75507769]
[1739258548530,0.03287642,205.53,205.5,4.8653]
[1739258550732,0.03287642,205.53,205.49,10.62067769]
[1739258551128,0.03287642,205.53,205.49,5.75507769]
[1739258551330,0.03287642,205.53,205.5,4.8653]
[1739258553034,0.03287642,205.53,205.49,5.75507769]
[1739258553230,0.03287642,205.53,205.51,4.8651]
[1739258553435,0.03287642,205.53,205.49,5.75507769]
[1739258553738,0.03287642,205.53,205.49,10.62047769]
[1739258554336,4.8653,205.51,205.49,0.03495815]
[1739258554535,5.72011954,205.52,205.49,0.03495815]
[1739258554732,0.03287642,205.53,205.49,0.03495815]
[1739258555338,4.8649,205.52,205.49,0.03495815]
[1739258555740,5.72011954,205.52,205.49,0.03495815]
[1739258555935,4.8654,205.5,205.49,0.03495815]
[1739258557935,4.8658,205.49,205.43,5.72011954]
[1739258558138,5.72011954,205.48,205.43,5.72011954]
[1739258559033,5.72011954,205.48,205.43,5.756734]
[1739258559240,5.72011954,205.46,205.43,0.03661446]
[1739258559439,5.72011954,205.44,205.43,0.03661446]
[1739258559941,10.58691954,205.44,205.43,0.03661446]
[1739258560740,5.72011954,205.44,205.43,0.03661446]
[1739258563439,10.58691954,205.44,205.43,0.03661446]
[1739258563639,5.72011954,205.44,205.43,0.03661446]
[1739258568139,10.58691954,205.44,205.43,0.03661446]
[1739258569944,20.32011954,205.44,205.33,5.72011954]
[1739258570146,5.72011954,205.4,205.33,5.72011954]
[1739258570347,5.72011954,205.4,205.34,4.8691]
[1739258570546,4.8682,205.38,205.33,5.72011954]
[1739258570740,5.72011954,205.38,205.31,5.72011954]
[1739258570942,5.75588144,205.38,205.33,0.03712035]
[1739258571446,5.75588144,205.38,205.33,5.75723989]
[1739258571746,5.75588144,205.38,205.33,10.62663989]
[1739258572250,10.62428144,205.38,205.33,10.62663989]
[1739258573751,0.0357619,205.38,205.35,4.8689]
[1739258574046,0.0357619,205.38,205.33,5.75723989]
[1739258575755,0.0357619,205.38,205.35,4.8689]
[1739258577054,0.0357619,205.38,205.35,5.72011954]
[1739258577260,0.0357619,205.38,205.37,10.58861954]
[1739258580062,0.0357619,205.38,205.37,5.72011954]
[1739258580462,0.0357619,205.38,205.35,5.72011954]
[1739258580763,4.9041619,205.38,205.33,10.62663989]
[1739258580965,5.72011954,205.36,205.33,0.03712035]
[1739258581365,10.58931954,205.34,205.33,0.03712035]
[1739258581664,5.72011954,205.34,205.33,0.03712035]
[1739258581865,4.869,205.35,205.33,0.03712035]
[1739258582066,5.72011954,205.36,205.33,0.03712035]
[1739258582457,4.8692,205.34,205.33,0.03712035]
[1739258584262,4.8692,205.34,202.43,47.34937167]
[1739258584263,4.8699,205.31,205.27,5.72011954]
[1739258584665,1.5068,205.33,205.27,5.72011954]
[1739258585565,0.03663882,205.32,205.28,0.02102673]
[1739258585767,0.03663882,205.32,205.29,4.8703]
[1739258586662,0.03663882,205.32,205.31,4.8699]
[1739258586868,0.03663882,205.32,205.31,10.59001954]
[1739258587064,5.72011954,205.41,205.31,5.72011954]
[1739258587269,5.72011954,205.41,205.36,5.72011954]
[1739258587470,4.8678,205.4,205.36,5.72011954]
[1739258587870,5.72011954,205.41,205.36,5.72011954]
[1739258588073,10.58761954,205.41,205.36,10.58861954]
[1739258588272,0.03115222,205.41,205.36,5.75720789]
[1739258588870,0.03115222,205.41,205.39,4.8679]
[1739258589365,0.03115222,205.41,205.38,5.72011954]
[1739258589567,0.03115222,205.41,205.38,10.58831954]
[1739258590172,0.03115222,205.41,205.38,5.72011954]
[1739258590366,0.03115222,205.41,205.4,5.72011954]
[1739258590563,0.03115222,205.41,205.4,10.58791954]
[1739258593270,0.03115222,205.41,205.4,5.72011954]
[1739258593473,5.75127176,205.41,205.36,5.75720789]
[1739258593778,5.75127176,205.41,205.36,0.03708835]
[1739258593973,10.61877176,205.41,205.36,0.03708835]
[1739258594574,5.75127176,205.41,205.36,5.75720789]
[1739258595177,4.8678,205.4,205.36,0.03708835]
[1739258595574,0.03115222,205.41,205.36,0.03708835]
[1739258595770,4.8685,205.37,205.36,0.03708835]
[1739258597181,8.96322876,205.39,205.36,0.03708835]
[1739258598277,4.8685,205.37,205.29,4.8704]
[1739258598481,8.96322876,205.39,205.29,4.8704]
[1739258598779,23.56322876,205.39,205.26,8.96322876]
[1739258598977,4.8694,205.33,205.28,4.8706]
[1739258599178,4.8694,205.33,205.23,8.96322876]
[1739258599581,0.03297133,205.3,205.26,4.8914772]
[1739258599781,4.90307133,205.3,205.26,0.0205772]
[1739258601489,0.03297133,205.3,205.26,4.8915772]
[1739258602690,4.90317133,205.3,205.26,0.0205772]
[1739258603191,0.03297133,205.3,205.26,4.8916772]
[1739258604785,4.90317133,205.3,205.26,4.8916772]
[1739258605186,4.90317133,205.3,205.26,0.0205772]
[1739258605486,4.8706,205.28,205.26,0.0205772]
[1739258605691,8.99620009,205.3,205.26,0.0205772]
[1739258606094,4.8704,205.29,205.26,0.0205772]
[1739258606293,8.99620009,205.3,205.26,0.0205772]
[1739258606796,4.8708,205.27,205.26,0.0205772]
[1739258607187,8.99620009,205.3,205.2,4.8724]
[1739258607395,8.96322876,205.24,205.11,9.40722876]
[1739258607691,8.96322876,205.21,205.08,8.96322876]
[1739258608097,8.96322876,205.21,205.1,4.8747]
[1739258608289,0.03351162,205.17,205.08,8.96322876]
[1739258609798,0.03351162,205.17,205.11,4.8746]
[1739258610193,0.03351162,205.17,205.08,8.96322876]
[1739258610398,4.90691162,205.17,205.08,8.96322876]
[1739258611099,0.03351162,205.17,205.08,8.96322876]
[1739258611600,0.03351162,205.17,205.11,4.8746]
[1739258612600,4.8735,205.16,205.1,4.8749]
[1739258613693,4.8737,205.15,205.1,4.8749]
[1739258613891,4.8737,205.15,205.08,8.96322876]
[1739258614092,8.96322876,205.15,205.03,0.444]
[1739258614297,4.8754,205.08,205.02,8.96322876]
[1739258614504,8.96322876,205.18,204.99,8.96322876]
[1739258614505,0.03669797,205.11,204.99,8.96322876]
[1739258614696,0.03669797,205.11,205.01,4.8768]
[1739258614899,8.96322876,205.12,205.01,4.8768]
[1739258615204,0.03270333,205.08,205.01,4.8768]
[1739258615802,4.8759,205.06,205.01,4.8768]
[1739258616004,0.03270333,205.08,204.99,8.96322876]
[1739258616199,4.8756,205.07,205.02,4.8768]
[1739258616505,0.03270333,205.08,204.99,8.96322876]
[1739258616699,0.03270333,205.08,205.01,4.8769]
[1739258617197,4.90810333,205.08,205.0,4.8773]
[1739258617799,0.03270333,205.08,205.02,4.8768]
[1739258618607,0.03270333,205.08,204.96,9.17232876]
[1739258619406,4.90830333,205.08,204.96,9.17232876]
[1739258620007,0.03270333,205.08,204.96,9.17232876]
[1739258620707,0.03270333,205.08,205.02,4.8768]
[1739258621512,0.03270333,205.08,205.02,4.8766]
[1739258621706,0.03270333,205.08,204.96,8.96322876]
[1739258622310,0.03270333,205.08,205.04,4.8763]
[1739258623006,0.03270333,205.08,205.05,4.8759]
[1739258623209,0.03270333,205.08,204.96,8.96322876]
[1739258623910,0.03270333,205.08,204.99,8.96322876]
[1739258624112,8.96322876,205.12,204.99,8.96322876]
[1739258624310,0.03300754,205.08,204.99,8.96322876]
[1739258624713,0.03300754,205.08,205.07,4.8754]
[1739258627220,13.83622876,205.18,205.12,4.8743]
[1739258628417,0.03108929,205.17,205.13,0.03363026]
[1739258630517,4.90428929,205.17,205.13,0.03363026]
[1739258631914,0.03108929,205.17,205.13,0.03363026]
[1739258633117,0.03108929,205.17,205.13,4.90753026]
[1739258633517,0.03108929,205.17,205.13,0.03363026]
[1739258634018,0.03108929,205.17,205.14,4.8738]
[1739258634620,0.03108929,205.17,205.16,4.8735]
[1739258635020,0.03108929,205.17,205.13,0.03363026]
[1739258636519,0.03108929,205.17,205.16,4.8735]
[1739258641918,67.94177831,205.25,205.22,4.8719]
[1739258642226,67.94177831,205.25,205.14,8.96322876]
[1739258642428,4.8716,205.24,205.14,8.96322876]
[1739258642723,67.94177831,205.25,205.14,8.96322876]
[1739258643230,0.03688973,205.22,205.17,0.03083003]
[1739258644029,0.03688973,205.22,205.21,4.8723]
[1739258646931,0.03688973,205.22,205.18,5.74377221]
[1739258647132,0.03688973,205.22,205.2,4.8725]
[1739258648031,0.03688973,205.22,205.19,4.8727]
[1739258648224,0.03688973,205.22,205.18,5.74377221]
[1739258648832,0.03688973,205.22,205.21,4.8723]
[1739258649332,0.03688973,205.22,205.18,5.74377221]
[1739258649530,0.03688973,205.22,205.2,4.8724]
[1739258649932,0.03688973,205.22,205.18,5.74377221]
[1739258650135,0.03688973,205.22,205.21,4.8723]
[1739258656038,0.03688973,205.22,205.18,5.74377221]
[1739258656243,0.03688973,205.22,205.2,4.8725]
[1739258657341,0.03688973,205.22,205.18,5.74377221]
[1739258657342,0.03688973,205.22,205.21,4.8723]
[1739258658246,0.03688973,205.22,205.2,4.8725]
[1739258660442,0.03688973,205.22,205.21,4.8723]
[1739258664547,7.9584,205.3,205.2,5.74377221]
[1739258664548,7.9584,205.3,205.26,4.871]
[1739258664745,7.9584,205.3,205.12,0.4029]
[1739258664746,3.0882,205.3,205.24,5.74377221]
[1739258665645,0.03493559,205.29,205.28,4.8706]
[1739258668054,0.03493559,205.29,205.28,10.61437221]
[1739258668843,0.03493559,205.29,205.28,4.8706]
[1739258669643,0.03493559,205.29,205.28,10.61437221]
[1739258676867,3.559e-05,205.29,205.28,10.61437221]
[1739258677262,2.9159,205.37,205.36,4.8687]
[1739258679066,1.49286065,205.39,205.36,4.8687]
[1739258680067,0.03566065,205.39,205.36,4.8687]
[1739258680471,0.03566065,205.39,205.35,5.74377221]
[1739258680668,5.77943286,205.39,205.34,0.03162023]
[1739258680863,4.8688,205.36,205.34,0.03162023]
[1739258681866,5.74377221,205.37,205.34,0.03162023]
[1739258682170,10.61227221,205.37,205.34,0.03162023]
[1739258682471,5.74377221,205.37,205.34,0.03162023]
[1739258682771,4.8683,205.38,205.34,4.90062023]
[1739258682973,5.77943286,205.39,205.34,0.03162023]
[1739258683776,10.64743286,205.39,205.35,4.8688]
[1739258684472,5.77943286,205.39,205.35,4.8688]
[1739258687374,10.64743286,205.39,205.35,4.8688]
[1739258687671,5.77943286,205.39,205.34,0.03162023]
[1739258688172,5.74377221,205.35,205.29,5.74377221]
[1739258688474,10.61277221,205.35,205.29,4.8702]
[1739258689374,0.03407557,205.34,205.3,0.03495974]
[1739258690278,0.03407557,205.34,205.31,4.8697]
[1739258690477,0.03407557,205.34,205.3,0.03495974]
[1739258690778,0.03407557,205.34,205.32,4.8697]
[1739258691782,0.03407557,205.34,205.33,5.74377221]
[1739258692779,0.03407557,205.34,205.33,10.61317221]
[1739258693877,7.557e-05,205.34,205.33,10.61317221]
[1739258694980,4.8672,205.43,205.39,4.8678]
[1739258695181,4.8672,205.43,205.39,10.61157221]
[1739258695381,1.4617,205.44,205.39,5.74377221]
[1739258695582,6.3285,205.44,205.4,4.8678]
[1739258695778,1.4617,205.44,205.39,5.74377221]
[1739258696083,1.49529973,205.44,205.42,4.8672]
[1739258696481,1.49529973,205.44,205.39,5.77736594]
[1739258697176,1.49529973,205.44,205.41,4.8675]
[1739258697784,1.49529973,205.44,205.42,4.8672]
[1739258698179,0.03359973,205.44,205.42,4.8672]
[1739258698681,0.03359973,205.44,205.41,4.8675]
[1739258698983,0.03359973,205.44,205.39,5.77736594]
[1739258698984,4.8674,205.42,205.39,0.03359373]
[1739258700186,4.8675,205.41,205.39,0.03359373]
[1739258701379,4.8673,205.42,205.39,0.03359373]
[1739258701787,5.74377221,205.43,205.39,0.03359373]
[1739258701991,10.61087221,205.43,205.39,0.03359373]
[1739258703085,10.61087221,205.43,205.39,4.90149373]
[1739258703285,1.55909973,205.44,205.39,5.77736594]
[1739258704281,1.55909973,205.44,205.41,10.61107221]
[1739258704488,0.03359973,205.44,205.41,10.61107221]
[1739258705588,0.03359973,205.44,205.41,5.74377221]
[1739258705788,0.03359973,205.44,205.42,4.8671]
[1739258706186,0.03359973,205.44,205.43,4.8671]
[1739258708887,0.03359973,205.44,205.41,5.74377221]
[1739258708888,4.90039973,205.44,205.41,5.74377221]
[1739258709088,4.90039973,205.44,205.4,4.8677]
[1739258709289,0.03359973,205.44,205.39,5.77736594]
[1739258710592,0.03359973,205.44,205.41,5.74377221]
[1739258710888,0.03359973,205.44,205.43,5.74377221]
[1739258711196,0.03359973,205.44,205.43,10.61087221]
[1739258713183,3.13,205.52,205.5,4.8654]
[1739258714192,3.13,205.52,205.49,4.8656]
[1739258714393,3.13,205.52,205.49,0.03698476]
[1739258715196,7.9949,205.52,205.49,0.03698476]
[1739258715892,3.13,205.52,205.49,0.03698476]
[1739258716794,5.74377221,205.51,205.49,0.03698476]
[1739258717192,4.8654,205.5,205.49,0.03698476]
[1739258719401,5.74377221,205.51,205.49,0.03698476]
[1739258719598,7.995,205.52,205.49,0.03698476]
[1739258720094,3.13,205.52,205.49,0.03698476]
[1739258722195,3.13,205.52,205.51,4.8652]
[1739258722398,0.0340718,205.53,205.5,5.74377221]
[1739258723705,0.0340718,205.53,205.52,4.8649]
[1739258724601,0.0340718,205.53,205.5,5.74377221]
[1739258724901,0.0340718,205.53,205.51,4.8651]
[1739258725502,4.8989718,205.53,205.49,0.03698476]
[1739258727103,4.8652,205.51,205.49,0.03698476]
[1739258728106,4.865,205.52,205.49,0.03698476]
[1739258728606,0.0340718,205.53,205.49,0.03698476]
[1739258728803,4.8987718,205.53,205.49,0.03698476]
[1739258729406,0.0340718,205.53,205.49,0.03698476]
[1739258730206,4.8652,205.51,205.49,0.03698476]
[1739258733608,4.865,205.52,205.49,0.03698476]
[1739258734109,5.77784401,205.53,205.49,0.03698476]
[1739258734410,4.8652,205.51,205.49,0.03698476]
[1739258734708,4.865,205.52,205.49,0.03698476]
[1739258741212,5.77784401,205.53,205.49,0.03698476]
[1739258741510,4.8651,205.52,205.49,0.03698476]
[1739258743013,5.77784401,205.53,205.49,0.03698476]
[1739258743203,4.865,205.52,205.49,0.03698476]
[1739258743409,5.77784401,205.53,205.49,0.03698476]
[1739258744214,4.865,205.52,205.49,0.03698476]
[1739258745214,4.8652,205.51,205.49,0.03698476]
[1739258745416,5.77784401,205.53,205.49,0.03698476]
[1739258745814,4.8653,205.51,205.49,0.03698476]
[1739258747116,5.77784401,205.53,205.49,0.03698476]
[1739258747317,4.8654,205.5,205.49,0.03698476]
[1739258747517,5.77784401,205.53,205.49,0.03698476]
[1739258748418,4.865,205.52,205.49,0.03698476]
[1739258750016,4.8652,205.51,205.49,0.03698476]
[1739258750216,5.77784401,205.53,205.49,0.03698476]
[1739258750414,4.865,205.52,205.49,0.03698476]
[1739258750619,5.77784401,205.53,205.49,0.03698476]
[1739258752822,4.8654,205.51,205.49,0.03698476]
[1739258754825,4.8654,205.5,205.49,0.03698476]
[1739258755725,4.6219,205.52,205.49,0.03698476]
[1739258756024,4.8652,205.51,205.49,0.03698476]
[1739258756915,9.4869,205.52,205.49,0.03698476]
[1739258757425,4.6219,205.52,205.49,4.90258476]
[1739258757725,3.0696,205.52,205.49,0.03698476]
[1739258758426,3.0696,205.52,205.5,4.8654]
[1739258761130,0.0340718,205.53,205.5,4.8654]
[1739258763231,0.0340718,205.53,205.52,4.8649]
[1739258763924,0.0340718,205.53,205.51,10.60897221]
[1739258764121,0.0340718,205.53,205.51,4.8652]
[1739258764327,0.0340718,205.53,205.49,0.03698476]
[1739258765426,5.77784401,205.53,205.49,0.03698476]
[1739258765627,10.64264401,205.53,205.49,0.03698476]
[1739258766331,5.77784401,205.53,205.49,0.03698476]
[1739258766931,5.77784401,205.53,205.5,4.8653]
[1739258767130,0.0340718,205.53,205.5,4.8653]
[1739258769727,5.74377221,205.54,205.5,4.8653]
[1739258770833,10.63968887,205.54,205.49,4.90258476]
[1739258772129,5.77518887,205.54,205.49,0.03698476]
[1739258772326,5.77518887,205.54,205.5,4.8652]
[1739258773030,0.03141666,205.54,205.49,5.78075697]
[1739258773233,0.03141666,205.54,205.51,5.74377221]
[1739258773827,0.03141666,205.54,205.53,4.8647]
[1739258775232,4.89591666,205.54,205.49,10.64625697]
[1739258775933,4.89591666,205.54,205.5,4.8652]
[1739258776128,0.03141666,205.54,205.5,4.8652]
[1739258777135,0.03141666,205.54,205.51,4.8651]
[1739258778236,0.03141666,205.54,205.49,5.78075697]
[1739258778436,0.03141666,205.54,205.5,4.8654]